bitfinex/quotes_BTCUSD_20240715
["timestamp","ask_amount","ask_price","bid_price","bid_amount"]
[1721052428281,0.20138086,63044.0,63043.0,0.151063]
[1721052428480,0.19238086,63044.0,63043.0,0.151063]
[1721052428951,0.02076186,63044.0,63043.0,0.599527]
[1721052429127,0.02076186,63044.0,63043.0,1.16999626]
[1721052429128,0.008,63044.0,63043.0,1.16999626]
[1721052429341,0.00084,63046.0,63045.0,0.475849]
[1721052429539,0.00084,63046.0,63045.0,1.04630826]
[1721052429746,0.00084,63046.0,63045.0,1.04930826]
[1721052429942,0.00084,63046.0,63045.0,0.063]
[1721052429943,0.476682,63046.0,63045.0,0.063]
[1721052430790,0.159454,63046.0,63045.0,0.063]
[1721052430920,0.02384,63046.0,63045.0,0.25622626]
[1721052431321,0.00084,63046.0,63045.0,0.063]
[1721052431571,0.318068,63046.0,63045.0,0.063]
[1721052431797,0.57578974,63044.0,63043.0,0.001]
[1721052431994,0.90379801,63044.0,63043.0,0.001]
[1721052432209,0.79312,63042.0,63041.0,0.009163]
[1721052432435,1.20219065,63042.0,63041.0,0.009163]
[1721052432738,1.42512339,63042.0,63041.0,0.009163]
[1721052432918,1.53789713,63042.0,63041.0,0.009163]
[1721052433373,1.52712686,63042.0,63041.0,0.009163]
[1721052433513,1.95513324,63042.0,63041.0,0.009163]
[1721052433856,2.13177633,63042.0,63041.0,0.009163]
[1721052433996,2.25043342,63042.0,63041.0,0.009163]
[1721052434195,2.17935984,63042.0,63041.0,0.009163]
[1721052434399,2.34147775,63042.0,63041.0,0.009163]
[1721052435032,2.16935984,63042.0,63041.0,0.009163]
[1721052435260,2.26413494,63042.0,63041.0,0.009163]
[1721052435410,2.25440303,63042.0,63041.0,0.009163]
[1721052435816,2.40755148,63032.0,63031.0,0.001]
[1721052436019,3.20718792,63032.0,63031.0,0.001]
[1721052436250,3.11727172,63032.0,63031.0,0.001]
[1721052436424,3.41087108,63032.0,63031.0,0.001]
[1721052436623,3.43554079,63032.0,63031.0,0.001]
[1721052437230,3.43554079,63032.0,63019.0,0.009174]
[1721052437231,3.7770587,63032.0,63019.0,0.009174]
[1721052437481,1.110704,63023.0,63019.0,0.009174]
[1721052437621,1.12209581,63023.0,63019.0,0.009174]
[1721052437971,1.24509581,63023.0,63019.0,0.009174]
[1721052438194,1.34509581,63023.0,63019.0,0.009174]
[1721052438398,1.44502855,63023.0,63019.0,0.009174]
[1721052438530,1.55780229,63023.0,63019.0,0.009174]
[1721052438732,1.44502855,63023.0,63019.0,0.009174]
[1721052439383,1.45902855,63023.0,63019.0,0.009174]
[1721052439539,1.55780229,63023.0,63019.0,0.009174]
[1721052439737,1.46069246,63023.0,63019.0,0.009174]
[1721052439947,1.79203646,63023.0,63019.0,0.009174]
[1721052440145,2.02285675,63023.0,63019.0,0.009174]
[1721052441269,2.18985675,63023.0,63019.0,0.009174]
[1721052441617,2.0718102,63023.0,63019.0,0.009174]
[1721052442425,2.3891542,63023.0,63019.0,0.009174]
[1721052442631,1.90782148,63020.0,63019.0,0.009174]
[1721052442870,2.2755772,63020.0,63019.0,0.009174]
[1721052443112,3.21665023,63020.0,63011.0,0.001]
[1721052443315,0.63841648,63008.0,63007.0,0.009174]
[1721052443462,1.30873866,63008.0,63007.0,0.009174]
[1721052443629,2.04357866,63008.0,63007.0,0.009174]
[1721052443825,2.41138365,63008.0,63007.0,0.009174]
[1721052444026,2.57350156,63008.0,63007.0,0.009174]
[1721052444241,2.52311657,63008.0,63007.0,0.009174]
[1721052444454,2.52311657,63008.0,63000.0,0.0002569]
[1721052444455,2.77365866,63008.0,63000.0,0.0002569]
[1721052444654,0.63843648,63000.0,62999.0,9e-07]
[1721052444877,0.63843648,63000.0,62991.0,0.001]
[1721052444878,1.60645648,62992.0,62991.0,0.001]
[1721052445081,2.68969104,62992.0,62991.0,0.001]
[1721052445504,1.67836492,62992.0,62991.0,0.001]
[1721052445735,1.43418274,62992.0,62991.0,0.001]
[1721052445908,1.54695648,62992.0,62991.0,0.001]
[1721052446309,2.04695648,62992.0,62991.0,0.001]
[1721052446512,1.46102374,62992.0,62991.0,0.001]
[1721052446874,1.44818274,62992.0,62991.0,0.001]
[1721052447076,1.57495648,62992.0,62991.0,0.001]
[1721052447506,1.89245648,62992.0,62991.0,0.001]
[1721052447851,1.57495648,62992.0,62991.0,0.001]
[1721052448418,1.89245648,62992.0,62991.0,0.001]
[1721052448911,1.57495648,62992.0,62991.0,0.001]
[1721052449753,1.46218274,62992.0,62991.0,0.001]
[1721052449902,1.36225,62992.0,62991.0,0.001]
[1721052450071,1.36225,62992.0,62991.0,0.0821]
[1721052450072,0.60425,62992.0,62991.0,0.0821]
[1721052450269,0.028,62992.0,62991.0,0.1445]
[1721052450475,0.18675,62992.0,62991.0,0.1445]
[1721052450683,0.50425,62992.0,62991.0,0.1445]
[1721052450882,0.50425,62992.0,62991.0,0.49647826]
[1721052450883,0.028,62992.0,62991.0,0.49647826]
[1721052451076,0.028,62992.0,62991.0,1.13148826]
[1721052451304,0.028,62992.0,62991.0,0.81398326]
[1721052451523,0.028,62992.0,62991.0,1.13148826]
[1721052451746,0.028,62992.0,62991.0,1.19148826]
[1721052451955,0.00306353,63008.0,63000.0,0.1373]
[1721052452141,0.31743,63006.0,63000.0,0.33052626]
[1721052452311,0.00306353,63005.0,63000.0,0.1373]
[1721052452494,0.16178153,63005.0,63000.0,0.1373]
[1721052452691,0.15872,63004.0,63000.0,0.1373]
[1721052452935,0.158724,63003.0,63000.0,0.1373]
[1721052453144,0.476182,63001.0,63000.0,0.1373]
[1721052453350,0.47625,62992.0,62988.0,0.19322626]
[1721052453548,0.47625,62992.0,62987.0,0.19332626]
[1721052453747,0.47625,62992.0,62991.0,0.1383]
[1721052454011,0.79375,62992.0,62991.0,0.1383]
[1721052454211,0.81675,62992.0,62991.0,0.1383]
[1721052455615,1.13425,62992.0,62991.0,0.1383]
[1721052455816,1.13425,62992.0,62991.0,0.0626]
[1721052456034,1.24702374,62992.0,62991.0,0.0626]
[1721052456401,1.24702374,62992.0,62991.0,0.001]
[1721052456632,1.84695648,62992.0,62991.0,0.001]
[1721052456753,1.94695648,62992.0,62991.0,0.001]
[1721052457184,2.26445648,62992.0,62991.0,0.001]
[1721052459124,1.77845648,62992.0,62991.0,0.001]
[1721052459302,1.46095648,62992.0,62991.0,0.001]
[1721052459507,1.46095648,62992.0,62991.0,0.001924]
[1721052459719,2.29245648,62992.0,62991.0,0.001924]
[1721052460304,1.32406148,62986.0,62985.0,0.080209]
[1721052460548,1.44706148,62986.0,62985.0,0.080209]
[1721052461167,1.33428774,62986.0,62985.0,0.080209]
[1721052461944,0.793902,62980.0,62979.0,0.009185]
[1721052462201,0.816902,62980.0,62979.0,0.009185]
[1721052462404,1.134463,62980.0,62979.0,0.009185]
[1721052463152,0.18178,62980.0,62979.0,0.069185]
[1721052463353,0.18178,62980.0,62979.0,0.149585]
[1721052464044,0.18178,62980.0,62979.0,0.23681126]
[1721052464268,0.499341,62980.0,62979.0,0.149585]
[1721052464477,0.023,62980.0,62979.0,0.149585]
[1721052464762,0.158777,62982.0,62979.0,0.23681126]
[1721052464763,0.023,62981.0,62979.0,0.23681126]
[1721052464978,0.106,62986.0,62985.0,0.08722626]
[1721052464979,0.006,62986.0,62985.0,0.08722626]
[1721052465205,0.006,62986.0,62985.0,0.1391]
[1721052465206,0.164765,62986.0,62985.0,0.1391]
[1721052465721,0.006,62986.0,62985.0,0.22632626]
[1721052465933,0.006,62986.0,62985.0,0.49109326]
[1721052466135,0.006,62986.0,62985.0,1.18616326]
[1721052466345,0.006,62986.0,62985.0,1.44369826]
[1721052466560,0.158726,63002.0,62997.0,0.1382]
[1721052466812,0.317435,63005.0,62997.0,0.22542626]
[1721052467062,0.788112,63010.0,62997.0,0.1382]
[1721052467063,0.31745,63002.0,62997.0,0.1382]
[1721052467493,0.15873,63000.0,62997.0,0.1382]
[1721052467905,0.381061,63004.0,62997.0,0.1382]
[1721052467906,0.31747,62998.0,62997.0,0.1382]
[1721052468105,0.476205,62998.0,62997.0,0.1382]
[1721052468858,0.499205,62998.0,62997.0,0.1382]
[1721052469055,0.816675,62998.0,62997.0,0.1382]
[1721052469324,0.816675,62998.0,62997.0,0.1402]
[1721052469471,0.499205,62998.0,62997.0,0.1402]
[1721052469818,0.816675,62998.0,62997.0,0.1382]
[1721052470171,0.816675,62998.0,62997.0,0.1402]
[1721052470398,0.181735,62998.0,62997.0,0.1402]
[1721052470718,0.816675,62998.0,62997.0,0.1402]
[1721052471520,0.816675,62998.0,62997.0,0.1382]
[1721052472067,1.134145,62998.0,62997.0,0.1392]
[1721052472311,1.14609461,62998.0,62997.0,0.0618]
[1721052472909,1.134145,62998.0,62997.0,0.0618]
[1721052473733,1.14557342,62998.0,62997.0,0.0618]
[1721052473937,1.14557342,62998.0,62997.0,0.001]
[1721052474174,1.93858231,62998.0,62997.0,0.001]
[1721052474425,2.13851505,62998.0,62997.0,0.001]
[1721052475240,2.13851505,62998.0,62987.0,0.0642]
[1721052475241,1.11132,62988.0,62987.0,0.0642]
[1721052475440,1.14556119,62988.0,62987.0,0.0642]
[1721052476507,0.81753,62986.0,62982.0,0.0616]
[1721052476662,0.81753,62986.0,62979.0,0.009185]
[1721052476663,0.476341,62980.0,62979.0,0.009185]
[1721052476867,0.80526037,62980.0,62979.0,0.009185]
[1721052477065,1.24582137,62980.0,62979.0,0.009185]
[1721052477268,1.234463,62980.0,62979.0,0.009185]
[1721052477486,1.24613319,62980.0,62979.0,0.009185]
[1721052477696,1.234463,62980.0,62979.0,0.009185]
[1721052477910,1.24613315,62980.0,62979.0,0.009185]
[1721052478310,0.92857215,62980.0,62979.0,0.009185]
[1721052479361,0.92894969,62980.0,62979.0,0.009185]
[1721052480322,0.9285475,62980.0,62979.0,0.009185]
[1721052480523,1.2461085,62980.0,62979.0,0.009185]
[1721052482150,0.9285475,62980.0,62979.0,0.009185]
[1721052482926,0.92854155,62980.0,62979.0,0.009185]
[1721052485921,0.03463955,62980.0,62979.0,0.20241126]
[1721052486181,0.023,62980.0,62979.0,0.27901126]
[1721052486328,0.023,62980.0,62979.0,0.34561126]
[1721052486553,0.00306353,62986.0,62982.0,0.19322626]
[1721052486554,0.181774,62983.0,62982.0,0.19322626]
[1721052486707,0.023,62983.0,62982.0,0.19322626]
[1721052487070,0.181773,62983.0,62982.0,0.19322626]
[1721052487277,0.181773,62983.0,62982.0,0.33642626]
[1721052487527,0.317539,62985.0,62979.0,0.009185]
[1721052487528,0.00306353,62997.0,62996.0,0.19322626]
[1721052487633,0.00306353,62997.0,62996.0,0.33642626]
[1721052487841,0.629425,63002.0,62996.0,0.33642626]
[1721052488082,0.17146793,63001.0,62996.0,0.33642626]
[1721052488289,0.01273993,63000.0,62996.0,0.1432]
[1721052488499,0.158737,62997.0,62996.0,0.1432]
[1721052488701,0.48847102,62997.0,62996.0,0.1432]
[1721052489032,0.01325902,62997.0,62996.0,0.1432]
[1721052489263,0.158737,62997.0,62996.0,0.1432]
[1721052489457,0.17105057,62997.0,62996.0,0.1432]
[1721052489688,0.19404859,62997.0,62996.0,0.1432]
[1721052489967,0.51152359,62997.0,62996.0,0.1432]
[1721052490450,0.19404859,62997.0,62996.0,0.1432]
[1721052490639,0.19404859,62997.0,62996.0,0.49516626]
[1721052490640,0.01731159,62997.0,62996.0,0.49516626]
[1721052490791,0.005,62997.0,62996.0,0.49516626]
[1721052491006,0.005,62997.0,62996.0,1.13012626]
[1721052491186,0.012,62997.0,62996.0,1.13012626]
[1721052491384,0.012,62997.0,62996.0,0.49516626]
[1721052491589,0.005,62997.0,62996.0,0.33642626]
[1721052491791,0.006,62997.0,62996.0,0.33642626]
[1721052491991,0.001,62997.0,62996.0,0.33642626]
[1721052492189,0.003,62997.0,62996.0,0.33642626]
[1721052492394,0.003,62997.0,62996.0,0.49516626]
[1721052492764,0.001,62997.0,62996.0,0.81264626]
[1721052493055,0.00283,62997.0,62996.0,0.33742626]
[1721052493198,0.01573025,62997.0,62996.0,0.33742626]
[1721052493657,0.03873025,62997.0,62996.0,0.33742626]
[1721052494262,0.03873025,62997.0,62996.0,0.001]
[1721052494412,0.83241725,62997.0,62996.0,0.001]
[1721052494903,0.87890345,62997.0,62996.0,0.001]
[1721052495337,0.87890345,62997.0,62992.0,0.0633]
[1721052495338,0.476242,62993.0,62992.0,0.0633]
[1721052495484,0.51224794,62993.0,62992.0,0.0633]
[1721052496655,0.04000594,62993.0,62992.0,0.25652626]
[1721052496785,0.04000594,62993.0,62992.0,0.73277626]
[1721052496786,0.004,62993.0,62992.0,0.73277626]
[1721052497178,0.008,62993.0,62992.0,1.18897626]
[1721052497621,0.008,62993.0,62992.0,1.12897626]
[1721052497826,0.008,62993.0,62992.0,1.18897626]
[1721052498028,0.008,62993.0,62992.0,1.50647626]
[1721052498294,0.07122777,63016.0,62992.0,1.50647626]
[1721052498295,0.05054871,63017.0,63016.0,0.19322626]
[1721052498467,0.05054871,63017.0,63016.0,0.0605]
[1721052498468,0.01558111,63017.0,63016.0,0.0605]
[1721052498656,0.01557968,63017.0,63016.0,0.25372626]
[1721052498831,0.01557968,63017.0,63016.0,0.0605]
[1721052499034,0.01251615,63017.0,63016.0,0.0605]
[1721052499504,0.25225553,63017.0,63016.0,0.0605]
[1721052499737,0.56962953,63017.0,63016.0,0.0605]
[1721052499990,0.57362953,63017.0,63016.0,0.0605]
[1721052500233,0.56962953,63017.0,63016.0,0.0605]
[1721052500470,0.01251615,63017.0,63016.0,0.0605]
[1721052500692,0.01251615,63017.0,63016.0,0.33502626]
[1721052501408,0.00306353,63026.0,63025.0,0.19322626]
[1721052501592,0.15865,63032.0,63028.0,0.19322626]
[1721052501593,0.063596,63030.0,63028.0,0.19322626]
[1721052501888,0.063596,63030.0,63025.0,0.1435]
[1721052501889,0.158655,63030.0,63025.0,0.23072626]
[1721052502092,0.317302,63032.0,63025.0,0.1435]
[1721052502093,0.08105238,63027.0,63025.0,0.1435]
[1721052502882,0.08105238,63027.0,63025.0,0.23072626]
[1721052503274,0.158657,63029.0,63025.0,0.33672626]
[1721052503519,0.158655,63030.0,63029.0,0.08722626]
[1721052503922,0.317302,63032.0,63028.0,0.19322626]
[1721052503923,0.158659,63029.0,63028.0,0.19322626]
[1721052504122,0.023,63030.0,63029.0,0.19322626]
[1721052504333,0.023,63030.0,63029.0,0.35188326]
[1721052504570,0.317259,63040.0,63031.0,0.19322626]
[1721052504571,0.023,63032.0,63031.0,0.19322626]
[1721052504697,0.317259,63040.0,63031.0,0.19322626]
[1721052504698,0.023,63035.0,63032.0,0.08722626]
[1721052504900,0.26269538,63035.0,63031.0,0.19322626]
[1721052505101,0.26269538,63035.0,63032.0,0.08722626]
[1721052505305,0.10405238,63035.0,63032.0,0.08722626]
[1721052505703,0.10405238,63035.0,63029.0,0.19322626]
[1721052505905,0.008,63030.0,63029.0,0.08722626]
[1721052506246,0.023,63030.0,63029.0,0.08722626]
[1721052506655,0.181652,63031.0,63025.0,0.2035]
[1721052506858,0.181652,63031.0,63025.0,0.1435]
[1721052506859,0.08105238,63026.0,63025.0,0.1435]
[1721052506993,0.10405238,63026.0,63025.0,0.1435]
[1721052508493,0.10405238,63026.0,63025.0,0.1445]
[1721052508964,0.26271638,63026.0,63025.0,0.1455]
[1721052509318,0.10405238,63026.0,63025.0,0.33772626]
[1721052509515,0.10505238,63026.0,63025.0,0.23372626]
[1721052509806,0.024,63026.0,63025.0,0.33972626]
[1721052510058,0.001,63026.0,63025.0,0.33872626]
[1721052510264,0.025,63026.0,63025.0,0.34372626]
[1721052510472,0.002,63026.0,63025.0,0.34372626]
[1721052510665,0.02375662,63026.0,63025.0,0.34372626]
[1721052510821,0.02371187,63026.0,63025.0,0.34372626]
[1721052510987,0.00071187,63026.0,63025.0,0.56239326]
[1721052511194,0.00071187,63026.0,63025.0,0.87972726]
[1721052511527,0.00071187,63026.0,63025.0,0.81972726]
[1721052512308,0.00071187,63026.0,63025.0,1.19506126]
[1721052512714,0.00171187,63026.0,63025.0,1.13806126]
[1721052512918,0.317289,63034.0,63027.0,0.19322626]
[1721052513097,0.317289,63034.0,63025.0,0.1515]
[1721052513098,0.158651,63032.0,63029.0,0.19322626]
[1721052513307,0.023,63031.0,63029.0,0.19322626]
[1721052513643,0.023,63031.0,63025.0,0.310165]
[1721052513644,0.023,63031.0,63030.0,0.19322626]
[1721052513813,0.18165,63032.0,63030.0,0.19322626]
[1721052514018,0.023,63032.0,63030.0,0.19322626]
[1721052514381,0.023,63032.0,63031.0,0.08722626]
[1721052514502,0.181649,63032.0,63030.0,0.19322626]
[1721052514943,0.181649,63032.0,63025.0,0.23072626]
[1721052514944,0.158652,63031.0,63025.0,0.23072626]
[1721052515179,0.023,63030.0,63025.0,0.23072626]
[1721052515387,0.023,63030.0,63027.0,0.19322626]
[1721052515581,0.08105238,63028.0,63026.0,0.19322626]
[1721052515736,0.08105238,63028.0,63025.0,0.1435]
[1721052515737,0.158664,63026.0,63025.0,0.1435]
[1721052515948,0.023,63026.0,63025.0,0.33672626]
[1721052516774,0.498993,63026.0,63025.0,0.1435]
[1721052517038,0.08105238,63028.0,63015.0,0.15869]
[1721052517039,0.08105238,63028.0,63015.0,0.1455]
[1721052517212,0.23974138,63016.0,63015.0,0.1455]
[1721052517417,0.55712038,63016.0,63015.0,0.0666]
[1721052517666,0.476113,63010.0,63009.0,0.0789]
[1721052517797,0.158704,63010.0,63009.0,0.0789]
[1721052518000,0.16176453,63012.0,63011.0,0.08722626]
[1721052518179,0.158702,63011.0,63010.0,0.0634]
[1721052518384,0.32046253,63012.0,63010.0,0.0634]
[1721052518385,0.16176353,63012.0,63011.0,0.08722626]
[1721052518654,0.16176353,63012.0,63010.0,0.1694]
[1721052518655,0.00306353,63011.0,63010.0,0.0634]
[1721052518844,0.16176553,63011.0,63010.0,0.0634]
[1721052519057,0.181702,63011.0,63010.0,0.0634]
[1721052519255,0.181702,63011.0,63009.0,0.001]
[1721052519256,1.110931,63010.0,63009.0,0.001]
[1721052519491,1.24531621,63010.0,63009.0,0.001]
[1721052519682,1.24531575,63010.0,63009.0,0.001]
[1721052520455,1.2453178,63010.0,63009.0,0.001]
[1721052520665,0.18131759,63010.0,63009.0,0.001]
[1721052520828,0.023,63010.0,63009.0,0.001]
[1721052521025,0.023,63010.0,63007.0,0.19322626]
[1721052521228,0.023,63010.0,63004.0,0.158718]
[1721052521229,0.0248986,63011.0,63010.0,0.19322626]
[1721052521484,0.001,63011.0,63010.0,0.35193026]
[1721052521911,0.001,63011.0,63008.0,0.456417]
[1721052521912,0.15869,63016.0,63013.0,0.19322626]
[1721052522112,0.16175053,63017.0,63014.0,0.19322626]
[1721052522241,0.49559648,63021.0,63015.0,0.19322626]
[1721052522442,0.49559648,63021.0,63019.0,0.19322626]
[1721052522443,0.158679,63020.0,63019.0,0.19322626]
[1721052522667,0.158682,63019.0,63018.0,0.08722626]
[1721052522865,0.476046,63019.0,63018.0,0.08722626]
[1721052523066,0.476046,63019.0,63015.0,0.19322626]
[1721052523067,0.158686,63018.0,63015.0,0.19322626]
[1721052523476,0.023,63017.0,63015.0,0.19322626]
[1721052524178,0.006,63016.0,63015.0,0.19322626]
[1721052524378,0.029,63016.0,63015.0,0.19322626]
[1721052524578,0.023,63016.0,63015.0,0.19322626]
[1721052524818,0.158693,63015.0,63013.0,0.19322626]
[1721052525007,0.023,63014.0,63011.0,0.19322626]
[1721052525575,0.317397,63013.0,63008.0,0.139]
[1721052525782,0.158722,63003.0,63002.0,0.0605]
[1721052525977,0.181722,63003.0,63002.0,0.0605]
[1721052526225,0.023,63003.0,63002.0,0.0605]
[1721052526431,0.023,63003.0,62997.0,0.19322626]
[1721052526600,0.08105238,63006.0,62997.0,0.08722626]
[1721052526601,0.158735,62998.0,62997.0,0.08722626]
[1721052526804,0.023,62998.0,62997.0,0.08722626]
[1721052528471,0.181735,62998.0,62997.0,0.08722626]
[1721052528684,0.024,62998.0,62997.0,0.19722626]
[1721052528816,0.001,62998.0,62997.0,0.19722626]
[1721052529025,0.001,62998.0,62997.0,0.73343826]
[1721052529259,0.001,62998.0,62997.0,1.05091326]
[1721052529466,0.001,62998.0,62997.0,1.36838826]
[1721052529824,0.002,62998.0,62997.0,1.51338826]
[1721052529953,0.002,62998.0,62997.0,1.83086326]
[1721052530779,0.001,62998.0,62997.0,1.82686326]
[1721052531112,0.001,62998.0,62997.0,1.83086326]
[1721052531540,0.002,62998.0,62997.0,1.83186326]
[1721052533430,0.002,62998.0,62997.0,2.03186326]
[1721052533671,0.002,62998.0,62997.0,1.83186326]
[1721052534284,0.002,62998.0,62997.0,2.29398117]
[1721052534681,0.001,62998.0,62997.0,2.19298117]
[1721052534879,0.00306353,63020.0,63017.0,0.06]
[1721052535136,0.26462586,63021.0,63017.0,0.06]
[1721052535137,0.023,63019.0,63018.0,0.08722626]
[1721052535340,0.023,63020.0,63018.0,0.08722626]
[1721052535712,0.181681,63020.0,63018.0,0.08722626]
[1721052536297,0.023,63020.0,63018.0,0.08722626]
[1721052537531,0.023,63020.0,63018.0,0.19322626]
[1721052537734,0.023,63020.0,63018.0,0.08722626]
[1721052538137,0.025,63020.0,63018.0,0.08722626]
[1721052539900,0.158683,63019.0,63015.0,0.19322626]
[1721052540102,0.158683,63019.0,63013.0,0.158697]
[1721052540103,0.181685,63018.0,63013.0,0.19322626]
[1721052540381,0.025,63020.0,63010.0,0.19322626]
[1721052540382,0.00306353,63017.0,63010.0,0.19322626]
[1721052540545,0.00306353,63017.0,63003.0,0.317443]
[1721052540546,0.08105238,63013.0,63004.0,0.08722626]
[1721052540750,0.08105238,63013.0,63001.0,0.083]
[1721052540751,0.07282947,63012.0,63001.0,0.1463]
[1721052540987,0.03336181,63011.0,63001.0,0.1463]
[1721052541136,0.01342534,63010.0,63003.0,0.19322626]
[1721052541339,0.01342534,63010.0,63008.0,0.19322626]
[1721052541340,0.03336181,63009.0,63008.0,0.19322626]
[1721052541517,0.023,63009.0,63007.0,0.19322626]
[1721052541715,0.16177453,63008.0,63005.0,0.19322626]
[1721052541941,0.023,63007.0,63005.0,0.19322626]
[1721052542118,0.023,63007.0,63001.0,0.1463]
[1721052542119,0.023,63007.0,63006.0,0.19322626]
[1721052542317,0.023,63008.0,63007.0,0.19322626]
[1721052542943,0.023,63008.0,63003.0,0.19322626]
[1721052543141,0.01138071,63007.0,63005.0,0.013]
[1721052543345,0.03338206,63006.0,63005.0,0.013]
[1721052543581,0.03338206,63006.0,63003.0,0.19322626]
[1721052543783,0.01344559,63005.0,63002.0,0.19322626]
[1721052544025,0.00306353,63005.0,63004.0,0.35194626]
[1721052544225,0.023,63006.0,63005.0,0.19322626]
[1721052544376,0.023,63009.0,63008.0,0.08722626]
[1721052544577,0.16888432,63009.0,63008.0,0.08722626]
[1721052544804,0.03317732,63009.0,63008.0,0.19322626]
[1721052545008,0.19188432,63009.0,63008.0,0.08722626]
[1721052545180,0.03376081,63009.0,63008.0,0.08722626]
[1721052545385,0.03376081,63009.0,63005.0,0.011]
[1721052545386,0.158711,63008.0,63006.0,0.08722626]
[1721052545584,0.17253634,63007.0,63004.0,0.08722626]
[1721052545790,0.01076081,63006.0,63004.0,0.08722626]
[1721052546010,0.023,63005.0,63003.0,0.19322626]
[1721052546330,0.01076081,63004.0,63001.0,0.1463]
[1721052546552,0.01076081,63004.0,63003.0,0.19322626]
[1721052547478,0.01076081,63004.0,63003.0,0.20722626]
[1721052548315,0.024,63005.0,63004.0,0.19322626]
[1721052548528,0.03508079,63005.0,63004.0,0.08722626]
[1721052548717,0.03408079,63005.0,63004.0,0.19322626]
[1721052549697,0.03508079,63005.0,63004.0,0.20722626]
[1721052550118,0.01208079,63005.0,63004.0,0.20722626]
[1721052550961,0.01208079,63005.0,63004.0,1.06082626]
[1721052551132,0.001,63005.0,63004.0,1.12512626]
[1721052551332,0.001,63005.0,63004.0,1.44256626]
[1721052551961,0.00171512,63005.0,63004.0,1.45356626]
[1721052557243,0.00171512,63005.0,63004.0,1.69218417]
[1721052557457,0.00306353,63019.0,63018.0,0.793422]
[1721052557598,0.4863143,63033.0,63032.0,0.81317426]
[1721052557811,0.01179669,63033.0,63032.0,0.49587526]
[1721052558002,0.181632,63039.0,63032.0,0.38987526]
[1721052558203,0.181632,63039.0,63033.0,0.14722626]
[1721052558204,0.16996936,63038.0,63033.0,0.14722626]
[1721052558515,0.01133536,63037.0,63033.0,0.14722626]
[1721052559364,0.023,63039.0,63033.0,0.14722626]
[1721052559365,0.01133536,63036.0,63033.0,0.14722626]
[1721052559539,0.01133536,63036.0,63032.0,0.348649]
[1721052559540,0.01133536,63035.0,63034.0,0.19322626]
[1721052559896,0.023,63039.0,63038.0,0.35186026]
[1721052560094,0.03408188,63039.0,63038.0,0.35186026]
[1721052560246,0.023,63039.0,63038.0,0.98639626]
[1721052560445,0.00084,63042.0,63041.0,0.35185226]
[1721052560798,0.00084,63042.0,63041.0,0.66910526]
[1721052561148,0.00084,63042.0,63041.0,1.12715826]
[1721052561346,0.00084,63042.0,63041.0,1.18715826]
[1721052562114,0.00084,63042.0,63041.0,1.44441126]
[1721052562344,0.00084,63042.0,63041.0,1.12715826]
[1721052562743,0.00084,63042.0,63041.0,0.011]
[1721052562972,0.159464,63042.0,63041.0,0.011]
[1721052563176,0.00084,63042.0,63041.0,0.19322626]
[1721052563376,0.00084,63042.0,63041.0,0.19522626]
[1721052563833,0.00084,63042.0,63041.0,0.20622626]
[1721052564045,0.00084,63042.0,63041.0,0.20422626]
[1721052564251,0.00084,63042.0,63041.0,1.01253065]
[1721052564546,0.00084,63042.0,63041.0,0.69527765]
[1721052564689,0.00084,63042.0,63041.0,0.68327765]
[1721052564890,0.00084,63042.0,63041.0,0.69527765]
[1721052565094,0.00084,63042.0,63041.0,0.68427765]
[1721052565610,0.00084,63042.0,63041.0,1.15033065]
[1721052566324,0.00084,63042.0,63041.0,1.13933065]
[1721052566533,0.01968,63047.0,63046.0,0.19322626]
[1721052566885,0.01968,63047.0,63042.0,0.317246]
[1721052566886,0.00833,63048.0,63047.0,0.19322626]
[1721052567089,0.00833,63048.0,63047.0,0.66906026]
[1721052567264,0.00833,63048.0,63047.0,1.04945528]
[1721052567464,0.00833,63048.0,63047.0,0.98945528]
[1721052567868,0.00833,63048.0,63047.0,1.42840626]
[1721052568068,0.00833,63048.0,63047.0,1.82102926]
[1721052568468,0.00833,63048.0,63047.0,1.82802926]
[1721052568845,0.00833,63048.0,63047.0,1.82102926]
[1721052569074,0.1,63079.0,63047.0,1.82102926]
[1721052569075,0.14873,63078.0,63059.0,0.25322626]
[1721052569275,0.00833,63078.0,63061.0,0.41180226]
[1721052569472,0.00833,63078.0,63061.0,1.21060826]
[1721052569473,0.01666,63075.0,63061.0,1.21060826]
[1721052569659,0.01666,63075.0,63061.0,1.52776126]
[1721052569660,0.00833,63075.0,63061.0,1.52776126]
[1721052570378,0.00833,63075.0,63061.0,1.46776126]
[1721052570379,0.08105238,63073.0,63061.0,1.46776126]
[1721052570588,0.08105238,63073.0,63061.0,1.52776126]
[1721052571814,0.08105238,63073.0,63061.0,0.84645526]
[1721052572018,0.00807434,63062.0,63061.0,0.74645526]
[1721052572221,0.00807434,63062.0,63061.0,1.05060826]
[1721052572395,0.00807434,63062.0,63061.0,0.74745526]
[1721052572623,0.00807434,63062.0,63061.0,0.68295526]
[1721052573255,0.00807434,63062.0,63061.0,1.01410826]
[1721052573603,0.00807434,63062.0,63061.0,0.69695526]
[1721052573803,0.00807434,63062.0,63061.0,1.01410826]
[1721052574150,0.00807434,63062.0,63061.0,1.00010826]
[1721052574545,0.00807434,63062.0,63061.0,1.01410826]
[1721052574774,0.00807434,63062.0,63061.0,0.028]
[1721052574891,0.00807434,63062.0,63061.0,0.23522626]
[1721052575525,0.00807434,63062.0,63061.0,0.042]
[1721052575526,0.16664834,63062.0,63061.0,0.042]
[1721052575739,0.57289634,63062.0,63061.0,0.028]
[1721052575935,0.89004434,63062.0,63061.0,0.028]
[1721052576135,0.89004434,63062.0,63055.0,0.08722626]
[1721052576136,0.15858,63060.0,63055.0,0.08722626]
[1721052576381,0.023,63059.0,63057.0,0.08722626]
[1721052576556,0.15859,63056.0,63053.0,0.08722626]
[1721052576758,0.023,63059.0,63053.0,0.08722626]
[1721052576957,0.07417434,63062.0,63054.0,0.00306353]
[1721052576958,0.158591,63055.0,63054.0,0.00306353]
[1721052577160,0.574974,63055.0,63054.0,0.00306353]